{"text_format":"1","workbook":"xlsx","n_sheets":2,"sheets":["invoice","codes"],"not_rendered":{"charts":0,"images":2,"macros":1,"external_links":0,"defined_names":5,"comments":0,"pivot_tables":0},"unopened":[],"bounds":{"document_bytes":16777216,"sheet_cells":100000,"rows_first":2000,"rows_last":500,"rows_between":2000,"halvings":0,"cell_chars":16384,"cell_head_chars":4096},"cells_cut":0,"cells_raw":0,"read":"whole","date_system":"1900"}

{"sheet":"invoice","index":0,"n_rows":64,"n_cols":11,"rows_kept":64,"cut":false,"hidden":false,"merged":[[2,2,2,3],[4,2,4,3],[6,6,6,7],[6,2,6,3],[63,3,63,4],[62,3,62,4]]}
[]
[]
[null,null,"التاريخ :",null,{"$f":"NOW()","v":"2018-09-30T08:43:37.850"},{"$f":"$E$3","v":43373.363632523149},null,9]
[]
[null,null,"السيد :"]
[]
[]
[]
[null,null,"العداد","الكود","اسم الصنف","الكمية","السعر","القيمه"]
[3,null,1,8,"الصنف8",40,22,{"$f":"G10*F10","v":880},null,null,10]
[null,null,2,5,"الصنف5",10,120,{"$f":"G11*F11","v":1200},null,null,11]
[null,null,null,null,null,null,null,{"$f":"G12*F12","v":0},null,null,12]
[null,null,null,null,null,null,null,0,null,null,13]
[null,null,null,null,null,null,null,0,null,null,14]
[null,null,null,null,null,null,null,0,null,null,15]
[null,null,null,null,null,null,null,0,null,null,16]
[null,null,null,null,null,null,null,0,null,null,17]
[null,null,null,null,null,null,null,0,null,null,18]
[null,null,null,null,null,null,null,0,null,null,19]
[null,null,null,null,null,null,null,0,null,null,20]
[null,null,null,null,null,null,null,0,null,null,21]
[null,null,null,null,null,null,null,0,null,null,22]
[null,null,null,null,null,null,null,0,null,null,23]
[null,null,null,null,null,null,null,0,null,null,24]
[null,null,null,null,null,null,null,0,null,null,25]
[null,null,null,null,null,null,null,0,null,null,26]
[null,null,null,null,null,null,null,0,null,null,27]
[null,null,null,null,null,null,null,0,null,null,28]
[null,null,null,null,null,null,null,0,null,null,29]
[null,null,null,null,null,null,null,0,null,null,30]
[null,null,null,null,null,null,null,0,null,null,31]
[null,null,null,null,null,null,null,0,null,null,32]
[null,null,null,null,null,null,null,0,null,null,33]
[null,null,null,null,null,null,null,0,null,null,34]
[null,null,null,null,null,null,null,0,null,null,35]
[null,null,null,null,null,null,null,0,null,null,60]
[null,null,null,null,null,null,null,0,null,null,60]
[null,null,null,null,null,null,null,0,null,null,60]
[null,null,null,null,null,null,null,0,null,null,60]
[null,null,null,null,null,null,null,0,null,null,60]
[null,null,null,null,null,null,null,0,null,null,60]
[null,null,null,null,null,null,null,0,null,null,60]
[null,null,null,null,null,null,null,0,null,null,60]
[null,null,null,null,null,null,null,0,null,null,60]
[null,null,null,null,null,null,null,0,null,null,60]
[null,null,null,null,null,null,null,0,null,null,60]
[null,null,null,null,null,null,null,0,null,null,60]
[null,null,null,null,null,null,null,0,null,null,60]
[null,null,null,null,null,null,null,0,null,null,60]
[null,null,null,null,null,null,null,0,null,null,60]
[null,null,null,null,null,null,null,0,null,null,60]
[null,null,null,null,null,null,null,0,null,null,60]
[null,null,null,null,null,null,null,0,null,null,60]
[null,null,null,null,null,null,null,0,null,null,60]
[null,null,null,null,null,null,null,0,null,null,60]
[null,null,null,null,null,null,null,0,null,null,60]
[null,null,null,null,null,null,null,0,null,null,60]
[null,null,null,null,null,null,null,0,null,null,60]
[null,null,null,null,null,null,null,0,null,null,60]
[null,null,null,null,null,null,null,0,null,null,60]
[null,null,null,null,null,null,null,{"$f":"SUM(H10:H59)","v":2080}]
[null,null,null,null,null,null,null,0]
[null,null,null,null,null,null,null,0]
[null,null,null,null,null,null,null,{"$f":"+H62+H61-H63","v":2080}]

{"sheet":"codes","index":1,"n_rows":29,"n_cols":6,"rows_kept":29,"cut":false,"hidden":false,"merged":[]}
["الكود","اسم الصنف","الوحدة","السعر البيع","السعر شراء"]
[1,"الصنف1",null,120,412]
[2,"الصنف2",null,120,541,"الرجاء الدخول للفيجوال بيسك و الاطلاع على الفورم لفهم المطلوب بالضبط وشكرا مسبق للجميع على مساعدتهم"]
[3,"الصنف3",null,120,670]
[4,"الصنف4",null,120,799]
[5,"الصنف5",null,120,928]
[6,"الصنف6",null,120,1057]
[7,"الصنف7",null,120,1186]
[8,"الصنف8",null,120,1315]
[9,"الصنف9",null,120,1444]
[10,"الصنف10",null,120,1573]
[11,"الصنف11",null,120,1702]
[12,"الصنف12",null,120,1831]
[13,"الصنف13",null,120,1960]
[14,"الصنف14",null,120,2089]
[15,"الصنف15",null,120,2218]
[16,"الصنف16",null,120,2347]
[17,"الصنف17",null,120,2476]
[18,"الصنف18",null,120,2605]
[19,"الصنف19",null,120,2734]
[20,"الصنف20",null,120,2863]
[21,"الصنف21",null,120,2992]
[22,"الصنف22",null,120,3121]
[23,"الصنف23",null,120,3250]
[24,"الصنف24",null,120,3379]
[25,"الصنف25",null,120,3508]
[26,"الصنف26",null,120,3637]
[27,"الصنف27",null,120,3766]
[28,"الصنف28",null,120,3895]